lending/lending_fUSD_20250803
["ID","MTS","AMOUNT","RATE_DAILY","PERIOD"]
[376956544,1754179859233,-199.770644,0.00024657,7]
[376956545,1754179859243,-199.770644,0.00024657,7]
[376956546,1754179859252,-199.770644,0.00024657,7]
[376956547,1754179859261,-151.0,0.00024657,7]
[376956548,1754179859271,-151.0,0.00024657,7]
[376956549,1754179859280,-151.0,0.00024657,7]
[376956550,1754179859293,-151.0,0.00024657,7]
[376956551,1754179859302,-151.0,0.00024657,7]
[376956552,1754179859312,-151.0,0.00024657,7]
[376956553,1754179859322,-151.0,0.00024657,7]
[376956554,1754179859331,-151.0,0.00024657,7]
[376956555,1754179859341,-151.0,0.00024657,7]
[376956556,1754179859350,-151.0,0.00024657,7]
[376956557,1754179859360,-151.0,0.00024657,7]
[376956558,1754179859369,-151.0,0.00024657,7]
[376956559,1754179859379,-151.0,0.00024657,7]
[376956560,1754179859389,-151.0,0.00024657,7]
[376956561,1754179859398,-248.177429,0.00024657,7]
[376956562,1754179859407,-451.264133,0.00024657,7]
[376956563,1754179859417,-451.264133,0.00024657,7]
[376956564,1754179859426,-451.264133,0.00024657,7]
[376956565,1754179859436,-451.264133,0.00024657,7]
[376956566,1754179859445,-451.264133,0.00024657,7]
[376956567,1754179859455,-451.264133,0.00024657,7]
[376956568,1754179859464,-451.264133,0.00024657,7]
[376956569,1754179859473,-451.264133,0.00024657,7]
[376956570,1754179859482,-451.264133,0.00024657,7]
[376956571,1754179859492,-451.264133,0.00024657,7]
[376956572,1754179859501,-151.0,0.00024657,7]
[376956573,1754179859510,-151.0,0.00024657,7]
[376956574,1754179859519,-151.0,0.00024657,7]
[376956575,1754179859529,-151.0,0.00024657,7]
[376956576,1754179859539,-151.0,0.00024657,7]
[376956577,1754179859548,-206.56052,0.00024657,7]
[376956578,1754179859558,-206.56052,0.00024657,7]
[376956579,1754179859567,-151.0,0.00024657,7]
[376956580,1754179859576,-151.0,0.00024657,7]
[376956581,1754179859585,-283.116496,0.00024657,7]
[376956582,1754179859594,-283.116496,0.00024657,7]
[376956583,1754179859603,-151.0,0.00024657,7]
[376956584,1754179859613,-172.528555,0.00024657,7]
[376956585,1754179859623,-172.528555,0.00024657,7]
[376956586,1754179859633,-608.22823,0.00024657,7]
[376956587,1754179859644,-608.22823,0.00024657,7]
[376956588,1754179859654,-151.0,0.00024657,7]
[376956589,1754179859664,-151.0,0.00024657,7]
[376956590,1754179859675,-916.225597,0.00024657,7]
[376956591,1754179859685,-151.0,0.00024657,7]
[376956592,1754179859695,-916.225597,0.00024657,7]
[376956593,1754179859704,-151.0,0.00024657,7]
[376956594,1754179859714,-155.848905,0.00024657,7]
[376956595,1754179859724,-155.848905,0.00024657,7]
[376956596,1754179859733,-151.0,0.00024657,7]
[376956597,1754179859743,-151.0,0.00024657,7]
[376956598,1754179859752,-178.382885,0.00024657,2]
[376956599,1754179859762,-151.0,0.00024657,7]
[376956600,1754179859772,-151.0,0.00024657,7]
[376956601,1754179859781,-200.346287,0.00024657,7]
[376956602,1754179859791,-482.49462703,0.00024657,2]
[376956603,1754179859800,-200.346287,0.00024657,7]
[376956604,1754179859811,-400.0,0.00024657,2]
[376956605,1754179860027,-400.0,0.00024657,2]
[376956606,1754179860037,-400.0,0.00024657,2]
[376956607,1754179860047,-400.0,0.00024657,2]
[376956608,1754179860057,-400.0,0.00024657,2]
[376956609,1754179860067,-151.0,0.00024657,7]
[376956610,1754179860078,-400.0,0.00024657,2]
[376956611,1754179860089,-205.15027927,0.00024657,2]
[376956612,1754179860098,-400.0,0.00024657,2]
[376956613,1754179860107,-400.0,0.00024657,2]
[376956614,1754179860118,-400.0,0.00024657,2]
[376956615,1754179860127,-400.0,0.00024657,2]
[376956616,1754179860136,-400.37178064,0.00024657,2]
[376956617,1754179860147,-400.0,0.00024657,2]
[376956618,1754179860156,-151.0,0.00024657,7]
[376956619,1754179860165,-178.382892,0.00024657,2]
[376956620,1754179860174,-151.0,0.00024657,7]
[376956621,1754179860184,-151.0,0.00024657,7]
[376956622,1754179860193,-400.0,0.00024657,2]
[376956623,1754179860203,-400.0,0.00024657,2]
[376956624,1754179860212,-400.0,0.00024657,2]
[376956625,1754179860221,-464.61096349,0.00024657,2]
[376956626,1754179860230,-400.0,0.00024657,2]
[376956627,1754179860239,-176.97249,0.00024657,7]
[376956628,1754179860248,-176.97249,0.00024657,7]
[376956629,1754179860258,-400.0,0.00024657,2]
[376956630,1754179860267,-400.0,0.00024657,2]
[376956631,1754179860277,-469.46,0.00024657,2]
[376956632,1754179860287,-400.0,0.00024657,2]
[376956633,1754179860296,-768.099497,0.00024657,7]
[376956634,1754179860305,-768.099497,0.00024657,7]
[376956635,1754179860315,-400.0,0.00024657,2]
[376956636,1754179860325,-400.0,0.00024657,2]
[376956637,1754179860341,-151.0,0.00024657,7]
[376956638,1754179860355,-180.95577988,0.00024657,2]
[376956639,1754179860366,-400.0,0.00024657,2]
[376956640,1754179860375,-400.0,0.00024657,2]
[376956641,1754179860385,-400.0,0.00024657,2]
[376956642,1754179860394,-400.0,0.00024657,2]
[376956643,1754179860403,-400.0,0.00024657,2]
[376956644,1754179860412,-400.0,0.00024657,2]
[376956645,1754179860421,-400.0,0.00024657,2]
[376956646,1754179860431,-151.0,0.00024657,7]
[376956647,1754179860440,-400.0,0.00024657,2]
[376956648,1754179860449,-160.6646,0.00024657,2]
[376956649,1754179860459,-400.0,0.00024657,2]
[376956650,1754179860468,-151.0,0.00024657,7]
[376956651,1754179860477,-757.86,0.00024657,2]
[376956652,1754179860487,-400.0,0.00024657,2]
[376956653,1754179860496,-152.090627,0.00024657,2]
[376956654,1754179860505,-400.0,0.00024657,2]
[376956655,1754179860514,-400.0,0.00024657,2]
[376956656,1754179860523,-982.71,0.00024657,2]
[376956657,1754179860533,-158.270426,0.00024657,2]
[376956658,1754179860541,-400.0,0.00024657,2]
[376956659,1754179860551,-918.93,0.00024657,2]
[376956660,1754179860560,-400.0,0.00024657,2]
[376956661,1754179860569,-400.0,0.00024657,2]
[376956662,1754179860578,-435.664854,0.00024657,7]
[376956663,1754179860587,-400.0,0.00024657,2]
[376956664,1754179860597,-481.41562678,0.00024657,2]
[376956665,1754179860606,-161.276879,0.00024657,2]
[376956666,1754179860616,-400.0,0.00024657,2]
[376956667,1754179860625,-400.0,0.00024657,2]
[376956668,1754179860635,-400.0,0.00024657,2]
[376956669,1754179860645,-435.664854,0.00024657,7]
[376956670,1754179860654,-400.0,0.00024657,2]
[376956671,1754179860673,-400.0,0.00024657,2]
[376956672,1754179860684,-400.0,0.00024657,2]
[376956673,1754179860693,-400.0,0.00024657,2]
[376956674,1754179860703,-400.0,0.00024657,2]
[376956675,1754179860711,-603.73,0.00024657,2]
[376956676,1754179860722,-400.0,0.00024657,2]
[376956677,1754179860731,-222.987635,0.00024657,7]
[376956678,1754179860740,-222.987635,0.00024657,7]
[376956679,1754179860750,-400.0,0.00024657,2]
[376956680,1754179860760,-684.11,0.00024657,2]
[376956681,1754179860770,-1303.1,0.00024657,2]
[376956682,1754179860780,-552.38,0.00024657,2]
[376956683,1754179860789,-400.0,0.00024657,2]
[376956684,1754179860799,-400.0,0.00024657,2]
[376956685,1754179860808,-400.0,0.00024657,2]
[376956686,1754179860817,-525.89316702,0.00024657,2]
[376956687,1754179860827,-400.0,0.00024657,2]
[376956688,1754179860837,-151.0,0.00024657,7]
[376956689,1754179860847,-400.0,0.00024657,2]
[376956690,1754179860856,-400.0,0.00024657,2]
[376956691,1754179860865,-481.48745262,0.00024657,2]
[376956692,1754179860875,-889.02,0.00024657,2]
[376956693,1754179860884,-151.0,0.00024657,7]
[376956694,1754179860894,-400.0,0.00024657,2]
[376956695,1754179860903,-400.0,0.00024657,2]
[376956696,1754179860912,-475.39,0.00024657,2]
[376956697,1754179860922,-400.0,0.00024657,2]
[376956698,1754179860931,-1031.08,0.00024657,2]
[376956699,1754179860941,-500.0,0.00024657,2]
[376956700,1754179860950,-500.0,0.00024657,2]
[376956701,1754179860960,-500.0,0.00024657,2]
[376956702,1754179860969,-500.0,0.00024657,2]
[376956703,1754179860978,-1229.85,0.00024657,2]
[376956704,1754179860987,-480.0,0.00024657,2]
[376956705,1754179860997,-237.74595678,0.00024657,2]
[376956706,1754179861007,-400.0,0.00024657,2]
[376956707,1754179861016,-501.19,0.00024657,2]
[376956708,1754179861026,-400.0,0.00024657,2]
[376956709,1754179861036,-400.0,0.00024657,2]
[376956710,1754179861045,-176.63640769,0.00024657,2]
[376956711,1754179861055,-480.8,0.00024657,2]
[376956712,1754179861064,-400.0,0.00024657,2]
[376956713,1754179861074,-151.0,0.00024657,7]
[376956714,1754179861084,-1434.64,0.00024657,2]
[376956715,1754179861093,-537.64,0.00024657,2]
[376956716,1754179861102,-151.0,0.00024657,7]
[376956717,1754179861112,-151.0,0.00024657,7]
[376956718,1754179861122,-400.0,0.00024657,2]
[376956719,1754179861131,-151.0,0.00024657,7]
[376956720,1754179861141,-151.0,0.00024657,7]
[376956721,1754179861150,-151.0,0.00024657,7]
[376956722,1754179861160,-151.0,0.00024657,7]
[376956723,1754179861169,-400.0,0.00024657,2]
[376956724,1754179861179,-400.0,0.00024657,2]
[376956725,1754179861194,-460.96,0.00024657,2]
[376956726,1754179861213,-11315.51,0.00024657,2]
[376956727,1754179861223,-468.02354522,0.00024657,2]
[376956728,1754179861232,-926.21,0.00024657,2]
[376956729,1754179861241,-400.0,0.00024657,2]
[376956730,1754179861251,-151.0,0.00024657,7]
[376956731,1754179861260,-1295.81,0.00024657,2]
[376956732,1754179861280,-400.0,0.00024657,2]
[376956733,1754179861296,-400.0,0.00024657,2]
[376956734,1754179861311,-400.0,0.00024657,2]
[376956735,1754179861327,-400.0,0.00024657,2]
[376956736,1754179861345,-1224.84,0.00024657,2]
[376956737,1754179861360,-400.0,0.00024657,2]
[376956738,1754179861374,-1229.89,0.00024657,2]
[376956739,1754179861392,-400.0,0.00024657,2]
[376956740,1754179861409,-400.0,0.00024657,2]
[376956741,1754179861427,-400.0,0.00024657,2]
[376956742,1754179861445,-400.0,0.00024657,2]
[376956743,1754179861461,-500.0,0.00024657,2]
[376956744,1754179861477,-500.0,0.00024657,2]
[376956745,1754179861495,-400.0,0.00024657,2]
[376956746,1754179861510,-400.0,0.00024657,2]
[376956747,1754179861523,-400.0,0.00024657,2]
[376956748,1754179861538,-400.0,0.00024657,2]
[376956749,1754179861555,-516.58,0.00024657,2]
[376956750,1754179861567,-400.0,0.00024657,2]
[376956751,1754179861582,-480.0,0.00024657,2]
[376956752,1754179861596,-844.44,0.00024657,2]
[376956753,1754179861609,-612.82,0.00024657,2]
[376956754,1754179861623,-400.0,0.00024657,2]
[376956755,1754179861638,-400.0,0.00024657,2]
[376956756,1754179861653,-1105.26,0.00024657,2]
[376956757,1754179861666,-422.85,0.00024657,2]
[376956758,1754179861682,-400.0,0.00024657,2]
[376956759,1754179861697,-400.0,0.00024657,2]
[376956760,1754179861710,-400.0,0.00024657,2]
[376956761,1754179861723,-400.0,0.00024657,2]
[376956762,1754179861737,-400.0,0.00024657,2]
[376956763,1754179861751,-460.0,0.00024657,2]
[376956764,1754179861765,-400.0,0.00024657,2]
[376956765,1754179861779,-400.0,0.00024657,2]
[376956766,1754179861794,-400.0,0.00024657,2]
[376956767,1754179861806,-564.51883668,0.00024657,2]
[376956768,1754179861821,-272.43018326,0.00024657,2]
[376956769,1754179861835,-400.0,0.00024657,2]
[376956770,1754179861849,-400.0,0.00024657,2]
[376956771,1754179861864,-400.0,0.00024657,2]
[376956772,1754179861879,-238.27454582,0.00024657,2]
[376956773,1754179861893,-400.0,0.00024657,2]
[376956774,1754179861907,-947.62,0.00024657,2]
[376956775,1754179861921,-406.8,0.00024657,2]
[376956776,1754179861944,-400.0,0.00024657,2]
[376956777,1754179861958,-4986.06,0.00024657,2]
[376956778,1754179861972,-1582.13,0.00024657,2]
[376956779,1754179861986,-966.96,0.00024657,2]
[376956780,1754179862000,-151.0,0.00024657,7]
[376956781,1754179862015,-173.539041,0.00024657,7]
[376956782,1754179862029,-400.0,0.00024657,2]
[376956783,1754179862044,-176.0739711,0.00024657,2]
[376956784,1754179862058,-151.0,0.00024657,7]
[376956785,1754179862073,-173.539041,0.00024657,7]
[376956786,1754179862087,-400.0,0.00024657,2]
[376956787,1754179862101,-400.0,0.00024657,2]
[376956788,1754179862116,-1362.66,0.00024657,2]
[376956789,1754179862131,-400.0,0.00024657,2]
[376956790,1754179862146,-400.0,0.00024657,2]
[376956791,1754179862160,-400.0,0.00024657,2]
[376956792,1754179862174,-400.0,0.00024657,2]
[376956793,1754179862187,-256.86695305,0.00024657,2]
[376956794,1754179862201,-400.0,0.00024657,2]
[376956795,1754179862215,-420.24911371,0.00024657,2]
[376956796,1754179862229,-400.0,0.00024657,2]
[376956797,1754179862243,-500.0,0.00024657,2]
[376956798,1754179862256,-500.0,0.00024657,2]
[376956799,1754179862269,-500.0,0.00024657,2]
[376956800,1754179862283,-500.0,0.00024657,2]
[376956801,1754179862297,-500.0,0.00024657,2]
[376956802,1754179862311,-400.0,0.00024657,2]
[376956803,1754179862324,-440.84198846,0.00024657,2]
[376956804,1754179862338,-498.647206,0.00024657,7]
[376956805,1754179862351,-151.0,0.00024657,7]
[376956806,1754179862365,-400.0,0.00024657,2]
[376956807,1754179862379,-400.0,0.00024657,2]
[376956808,1754179862392,-151.0,0.00024657,7]
[376956809,1754179862405,-151.0,0.00024657,7]
[376956810,1754179862419,-533.12,0.00024657,2]
[376956811,1754179862432,-460.0,0.00024657,2]
[376956812,1754179862446,-400.0,0.00024657,2]
[376956813,1754179862458,-934.41,0.00024657,2]
[376956814,1754179862473,-400.0,0.00024657,2]
[376956815,1754179862487,-400.0,0.00024657,2]
[376956816,1754179862500,-400.0,0.00024657,2]
[376956817,1754179862513,-400.0,0.00024657,2]
[376956818,1754179862528,-400.0,0.00024657,2]
[376956819,1754179862543,-498.647206,0.00024657,7]
[376956820,1754179862557,-4857.12,0.00024657,2]
[376956821,1754179862570,-400.0,0.00024657,2]
[376956822,1754179862582,-1250.35,0.00024657,2]
[376956823,1754179862596,-400.0,0.00024657,2]
[376956824,1754179862609,-400.0,0.00024657,2]
[376956825,1754179862623,-400.0,0.00024657,2]
[376956826,1754179862637,-898.33,0.00024657,2]
[376956827,1754179862649,-503.78487101,0.00024657,2]
[376956828,1754179862662,-1146.7,0.00024657,2]
[376956829,1754179862678,-400.0,0.00024657,2]
[376956830,1754179862692,-400.0,0.00024657,2]
[376956831,1754179862706,-462.14473109,0.00024657,2]
[376956832,1754179862719,-400.57759667,0.00024657,2]
[376956833,1754179862734,-400.0,0.00024657,2]
[376956834,1754179862747,-400.0,0.00024657,2]
[376956835,1754179862763,-1029.36,0.00024657,2]
[376956836,1754179862776,-607.03,0.00024657,2]
[376956837,1754179862789,-460.0,0.00024657,2]
[376956838,1754179862803,-400.0,0.00024657,2]
[376956839,1754179862817,-400.0,0.00024657,2]
[376956840,1754179862830,-400.0,0.00024657,2]
[376956841,1754179862844,-1659.9,0.00024657,2]
[376956842,1754179862856,-151.0,0.00024657,7]
[376956843,1754179862869,-1535.99,0.00024657,2]
[376956844,1754179862882,-421.53,0.00024657,2]
[376956845,1754179862896,-400.0,0.00024657,2]
[376956846,1754179862910,-400.0,0.00024657,2]
[376956847,1754179862923,-183.411857,0.00024657,7]
[376956848,1754179862936,-400.0,0.00024657,2]
[376956849,1754179862949,-151.411875,0.00024657,7]
[376956850,1754179862962,-1701.82,0.00024657,2]
[376956851,1754179862974,-151.0,0.00024657,7]
[376956852,1754179862987,-1293.85,0.00024657,2]
[376956853,1754179863000,-151.0,0.00024657,7]
[376956854,1754179863013,-151.0,0.00024657,7]
[376956855,1754179863029,-183.411857,0.00024657,7]
[376956856,1754179863043,-400.0,0.00024657,2]
[376956857,1754179863056,-400.0,0.00024657,2]
[376956858,1754179863071,-400.0,0.00024657,2]
[376956859,1754179863084,-663.66,0.00024657,2]
[376956860,1754179863097,-400.0,0.00024657,2]
[376956861,1754179863112,-451.99,0.00024657,2]
[376956862,1754179863126,-1179.63,0.00024657,2]
[376956863,1754179863139,-488.55,0.00024657,2]
[376956864,1754179863152,-400.0,0.00024657,2]
[376956865,1754179863166,-400.0,0.00024657,2]
[376956866,1754179863179,-1920.94,0.00024657,2]
[376956867,1754179863192,-400.0,0.00024657,2]
[376956868,1754179863205,-500.0,0.00024657,2]
[376956869,1754179863218,-500.0,0.00024657,2]
[376956870,1754179863231,-500.0,0.00024657,2]
[376956871,1754179863244,-616.82,0.00024657,2]
[376956872,1754179863258,-400.0,0.00024657,2]
[376956873,1754179863271,-656.45,0.00024657,2]
[376956874,1754179863284,-300.0,0.00024657,2]
[376956875,1754179863296,-337.805256,0.00024657,7]
[376956876,1754179863310,-400.0,0.00024657,2]
[376956877,1754179863324,-935.04,0.00024657,2]
[376956878,1754179863338,-337.805256,0.00024657,7]
[376956879,1754179863351,-337.805256,0.00024657,7]
[376956880,1754179863363,-400.0,0.00024657,2]
[376956881,1754179863378,-693.56,0.00024657,2]
[376956882,1754179863391,-877.0,0.00024657,2]
[376956883,1754179863404,-337.805256,0.00024657,7]
[376956884,1754179863418,-782.16,0.00024657,2]
[376956885,1754179863431,-337.805256,0.00024657,7]
[376956886,1754179863444,-337.805256,0.00024657,7]
[376956887,1754179863457,-400.0,0.00024657,2]
[376956888,1754179863470,-644.52,0.00024657,2]
[376956889,1754179863483,-400.0,0.00024657,2]
[376956890,1754179863497,-400.0,0.00024657,2]
[376956891,1754179863511,-400.0,0.00024657,2]
[376956892,1754179863524,-400.0,0.00024657,2]
[376956893,1754179863537,-576.26,0.00024657,2]
[376956894,1754179863550,-4055.72,0.00024657,2]
[376956895,1754179863564,-400.0,0.00024657,2]
[376956896,1754179863576,-1542.83,0.00024657,2]
[376956897,1754179863589,-1401.14,0.00024657,2]
[376956898,1754179863602,-400.0,0.00024657,2]
[376956899,1754179863615,-400.0,0.00024657,2]
[376956900,1754179863629,-151.0,0.00024657,7]
[376956901,1754179863644,-151.0,0.00024657,7]
[376956902,1754179863657,-249.632812,0.00024657,7]
[376956903,1754179863670,-151.0,0.00024657,7]
[376956904,1754179863686,-400.0,0.00024657,2]
[376956905,1754179863699,-151.0,0.00024657,7]
[376956906,1754179863712,-151.0,0.00024657,7]
[376956907,1754179863726,-986.87,0.00024657,2]
[376956908,1754179863739,-400.0,0.00024657,2]
[376956909,1754179863755,-151.0,0.00024657,7]
[376956910,1754179863769,-400.0,0.00024657,2]
[376956911,1754179863784,-151.0,0.00024657,7]
[376956912,1754179863798,-400.0,0.00024657,2]
[376956913,1754179863812,-400.0,0.00024657,2]
[376956914,1754179863827,-500.0,0.00024657,2]
[376956915,1754179863842,-600.65,0.00024657,2]
[376956916,1754179863857,-400.0,0.00024657,2]
[376956917,1754179863876,-400.0,0.00024657,2]
[376956918,1754179863891,-400.0,0.00024657,2]
[376956919,1754179863905,-400.0,0.00024657,2]
[376956920,1754179863921,-400.0,0.00024657,2]
[376956921,1754179863935,-400.0,0.00024657,2]
[376956922,1754179863949,-400.0,0.00024657,2]
[376956923,1754179863964,-400.0,0.00024657,2]
[376956924,1754179863978,-400.0,0.00024657,2]
[376956925,1754179863991,-2848.3,0.00024657,2]
[376956926,1754179864005,-151.0,0.00024657,7]
[376956927,1754179864020,-1370.61,0.00024657,2]
[376956928,1754179864035,-151.0,0.00024657,7]
[376956929,1754179864048,-400.0,0.00024657,2]
[376956930,1754179864062,-400.0,0.00024657,2]
[376956931,1754179864077,-400.0,0.00024657,2]
[376956932,1754179864091,-637.44,0.00024657,2]
[376956933,1754179864101,-151.0,0.00024657,7]
[376956934,1754179864112,-400.0,0.00024657,2]
[376956935,1754179864124,-400.0,0.00024657,2]
[376956936,1754179864135,-151.0,0.00024657,7]
[376956937,1754179864145,-273.975765,0.00024657,7]
[376956938,1754179864156,-400.0,0.00024657,2]
[376956939,1754179864166,-426.67,0.00024657,2]
[376956940,1754179864176,-217.07590729,0.00024657,2]
[376956941,1754179864185,-526.53,0.00024657,2]
[376956942,1754179864727,-884.35,0.00024657,2]
[376956943,1754179864767,-400.0,0.00024657,2]
[376956944,1754179864792,-400.0,0.00024657,2]
[376956945,1754179864803,-400.0,0.00024657,2]
[376956946,1754179864813,-400.0,0.00024657,2]
[376956947,1754179864823,-400.0,0.00024657,2]
[376956948,1754179864832,-400.0,0.00024657,2]
[376956949,1754179864842,-400.0,0.00024657,2]
[376956950,1754179864852,-985.45,0.00024657,2]
[376956951,1754179864862,-400.0,0.00024657,2]
[376956952,1754179864874,-400.0,0.00024657,2]
[376956953,1754179864884,-1957.4,0.00024657,2]
[376956954,1754179864894,-400.0,0.00024657,2]
[376956955,1754179864903,-670.73,0.00024657,2]
[376956956,1754179864913,-400.0,0.00024657,2]
[376956957,1754179864922,-492.864166,0.00024657,7]
[376956958,1754179864932,-400.0,0.00024657,2]
[376956959,1754179864942,-400.0,0.00024657,2]
[376956960,1754179864951,-492.864166,0.00024657,7]
[376956961,1754179864961,-470.73,0.00024657,2]
[376956962,1754179864970,-492.864166,0.00024657,7]
[376956963,1754179864980,-400.0,0.00024657,2]
[376956964,1754179864989,-507.984616,0.00024657,7]
[376956965,1754179864999,-492.864166,0.00024657,7]
[376956966,1754179865008,-492.864166,0.00024657,7]
[376956967,1754179865018,-492.864166,0.00024657,7]
[376956968,1754179865029,-151.0,0.00024657,7]
[376956969,1754179865039,-400.0,0.00024657,2]
[376956970,1754179865050,-697.79,0.00024657,2]
[376956971,1754179865059,-400.0,0.00024657,2]
[376956972,1754179865069,-507.984616,0.00024657,7]
[376956973,1754179865079,-227.587266,0.00024657,7]
[376956974,1754179865088,-462.0,0.00024657,2]
[376956975,1754179865098,-400.0,0.00024657,2]
[376956976,1754179865107,-400.0,0.00024657,2]
[376956977,1754179865116,-400.0,0.00024657,2]
[376956978,1754179865133,-500.0,0.00024657,2]
[376956979,1754179865142,-3410.38,0.00024657,2]
[376956980,1754179865151,-500.0,0.00024657,2]
[376956981,1754179865160,-500.0,0.00024657,2]
[376956982,1754179865170,-500.0,0.00024657,2]
[376956983,1754179865179,-921.25,0.00024657,2]
[376956984,1754179865188,-500.0,0.00024657,2]
[376956985,1754179865197,-500.0,0.00024657,2]
[376956986,1754179865206,-500.0,0.00024657,2]
[376956987,1754179865215,-500.0,0.00024657,2]
[376956988,1754179865224,-500.0,0.00024657,2]
[376956989,1754179865234,-500.0,0.00024657,2]
[376956990,1754179865243,-500.0,0.00024657,2]
[376956991,1754179865252,-1510.72,0.00024657,2]
[376956992,1754179865262,-400.0,0.00024657,2]
[376956993,1754179865271,-2105.53,0.00024657,2]
[376956994,1754179865280,-1341.53,0.00024657,2]
[376956995,1754179865290,-400.0,0.00024657,2]
[376956996,1754179865299,-1406.51,0.00024657,2]
[376956997,1754179865308,-456.84261113,0.00024657,2]
[376956998,1754179865317,-400.0,0.00024657,2]
[376956999,1754179865326,-712.06,0.00024657,2]
[376957000,1754179865336,-908.5,0.00024657,2]
[376957001,1754179865345,-400.0,0.00024657,2]
[376957002,1754179865354,-775.31,0.00024657,2]
[376957003,1754179865363,-500.0,0.00024657,2]
[376957004,1754179865375,-500.0,0.00024657,2]
[376957005,1754179865384,-400.0,0.00024657,2]
[376957006,1754179865393,-2631.03,0.00024657,2]
[376957007,1754179865403,-500.0,0.00024657,2]
[376957008,1754179865412,-500.0,0.00024657,2]
[376957009,1754179865421,-500.0,0.00024657,2]
[376957010,1754179865430,-500.0,0.00024657,2]
[376957011,1754179865439,-600.0,0.00024657,2]
[376957012,1754179865448,-400.0,0.00024657,2]
[376957013,1754179865457,-400.0,0.00024657,2]
[376957014,1754179865467,-400.0,0.00024657,2]
[376957015,1754179865476,-560.11,0.00024657,2]
[376957016,1754179865486,-400.0,0.00024657,2]
[376957017,1754179865496,-2221.65,0.00024657,2]
[376957018,1754179865506,-547.28,0.00024657,2]
[376957019,1754179865516,-400.0,0.00024657,2]
[376957020,1754179865526,-400.0,0.00024657,2]
[376957021,1754179865536,-892.31,0.00024657,2]
[376957022,1754179865545,-1017.23,0.00024657,2]
[376957023,1754179865555,-400.0,0.00024657,2]
[376957024,1754179865564,-400.0,0.00024657,2]
[376957025,1754179865574,-1385.61085,0.00024657,7]
[376957026,1754179865584,-1385.61085,0.00024657,7]
[376957027,1754179865593,-400.0,0.00024657,2]
[376957028,1754179865603,-151.0,0.00024657,7]
[376957029,1754179865613,-151.0,0.00024657,7]
[376957030,1754179865624,-736.39,0.00024657,2]
[376957031,1754179865634,-1385.61085,0.00024657,7]
[376957032,1754179865644,-1214.08,0.00024657,2]
[376957033,1754179865654,-5297.83,0.00024657,2]
[376957034,1754179865663,-3011.50418,0.00024657,2]
[376957035,1754179865673,-406.05,0.00024657,2]
[376957036,1754179865685,-154.564944,0.00024657,2]
[376957037,1754179865695,-875.51,0.00024657,2]
[376957038,1754179865704,-596.66,0.00024657,2]
[376957039,1754179865713,-400.0,0.00024657,2]
[376957040,1754179865723,-746.78,0.00024657,2]
[376957041,1754179865732,-1514.78,0.00024657,2]
[376957042,1754179865742,-1385.61085,0.00024657,7]
[376957043,1754179865751,-1385.61085,0.00024657,7]